[Event "*** SCC Grand Prix: Titled Tuesday Blitz"]
[Site "Chess.com"]
[Date "2020.08.25"]
[Round "10"]
[White "Hikaru"]
[Black "BillieKimbah"]
[Result "1/2-1/2"]
[WhiteElo "3203"]
[BlackElo "2913"]
[TimeControl "180+1"]
[EndTime "12:03:22 PDT"]
[Termination "Game drawn by 50-move rule"]

1. Nf3 {[%clk 0:03:00.9]} 1... d5 {[%clk 0:02:59.5]} 2. e3 {[%clk 0:03:01]} 2...
Nf6 {[%clk 0:02:58.8]} 3. c4 {[%clk 0:03:01.4]} 3... e6 {[%clk 0:02:58.7]} 4.
Nc3 {[%clk 0:03:01.2]} 4... Be7 {[%clk 0:02:56.8]} 5. cxd5 {[%clk 0:03:00.2]}
5... exd5 {[%clk 0:02:56.5]} 6. d4 {[%clk 0:02:59]} 6... c6 {[%clk 0:02:53.2]}
7. Bd3 {[%clk 0:02:58.9]} 7... O-O {[%clk 0:02:51.5]} 8. O-O {[%clk 0:02:58.8]}
8... Bg4 {[%clk 0:02:51]} 9. Ne2 {[%clk 0:02:54.4]} 9... Nbd7 {[%clk 0:02:33.3]}
10. Ng3 {[%clk 0:02:50.2]} 10... Bd6 {[%clk 0:02:32.7]} 11. h3 {[%clk 0:02:50]}
11... Be6 {[%clk 0:02:32.2]} 12. Ng5 {[%clk 0:02:45.5]} 12... Bxg3 {[%clk
0:02:17.7]} 13. fxg3 {[%clk 0:02:46.4]} 13... Re8 {[%clk 0:02:18.1]} 14. Bd2
{[%clk 0:02:37.7]} 14... h6 {[%clk 0:02:17.3]} 15. Nf3 {[%clk 0:02:38]} 15...
Nb6 {[%clk 0:02:07.9]} 16. b3 {[%clk 0:02:34.9]} 16... Nc8 {[%clk 0:02:07.5]}
17. g4 {[%clk 0:02:34.2]} 17... Ne4 {[%clk 0:02:04]} 18. Bxe4 {[%clk 0:02:34.1]}
18... dxe4 {[%clk 0:02:04.9]} 19. Nh2 {[%clk 0:02:34.7]} 19... Nb6 {[%clk
0:02:01]} 20. Rf2 {[%clk 0:02:34.6]} 20... Nd5 {[%clk 0:02:01]} 21. Nf1 {[%clk
0:02:35.3]} 21... a5 {[%clk 0:01:59.8]} 22. Ng3 {[%clk 0:02:35]} 22... Bd7
{[%clk 0:01:54.7]} 23. Qc2 {[%clk 0:02:32.9]} 23... Qe7 {[%clk 0:01:54.5]} 24.
Raf1 {[%clk 0:02:32.6]} 24... f6 {[%clk 0:01:52.5]} 25. Bc1 {[%clk 0:02:14.9]}
25... Nb4 {[%clk 0:01:28.6]} 26. Qb1 {[%clk 0:02:13.6]} 26... Nd3 {[%clk
0:01:25]} 27. Rc2 {[%clk 0:02:05.3]} 27... Qd6 {[%clk 0:01:16.3]} 28. Nh5 {[%clk
0:02:01.4]} 28... Be6 {[%clk 0:01:12.6]} 29. Bd2 {[%clk 0:01:53.4]} 29... Bf7
{[%clk 0:01:10]} 30. Nf4 {[%clk 0:01:51.9]} 30... Qd7 {[%clk 0:00:58.1]} 31. Be1
{[%clk 0:01:45.3]} 31... a4 {[%clk 0:00:54.7]} 32. Rc3 {[%clk 0:01:41.2]} 32...
axb3 {[%clk 0:00:54.5]} 33. axb3 {[%clk 0:01:42.1]} 33... Nxf4 {[%clk
0:00:54.2]} 34. Rxf4 {[%clk 0:01:43]} 34... Bd5 {[%clk 0:00:54.2]} 35. Qb2
{[%clk 0:01:37.4]} 35... Ra6 {[%clk 0:00:53.3]} 36. Rc1 {[%clk 0:01:25]} 36...
Rea8 {[%clk 0:00:53.3]} 37. Bb4 {[%clk 0:01:25.2]} 37... Ra2 {[%clk 0:00:52.6]}
38. Qc3 {[%clk 0:01:25.8]} 38... Qe6 {[%clk 0:00:45.8]} 39. Rb1 {[%clk 0:01:23]}
39... Re2 {[%clk 0:00:45.1]} 40. Rf2 {[%clk 0:01:23]} 40... Raa2 {[%clk
0:00:43.3]} 41. Rxe2 {[%clk 0:01:22.2]} 41... Rxe2 {[%clk 0:00:44.2]} 42. Qc5
{[%clk 0:00:51.8]} 42... Kh7 {[%clk 0:00:43.3]} 43. Qc3 {[%clk 0:00:45.8]} 43...
f5 {[%clk 0:00:42.4]} 44. Re1 {[%clk 0:00:30.3]} 44... Rxe1+ {[%clk 0:00:41.2]}
45. Qxe1 {[%clk 0:00:31.2]} 45... fxg4 {[%clk 0:00:41.5]} 46. hxg4 {[%clk
0:00:31.2]} 46... Qxg4 {[%clk 0:00:41.3]} 47. Bd6 {[%clk 0:00:29.3]} 47... Bxb3
{[%clk 0:00:40.3]} 48. Qb4 {[%clk 0:00:29.9]} 48... Bd1 {[%clk 0:00:35.8]} 49.
Qxb7 {[%clk 0:00:24.6]} 49... Qg6 {[%clk 0:00:32.7]} 50. Be5 {[%clk 0:00:18.8]}
50... Bf3 {[%clk 0:00:31.7]} 51. Qb2 {[%clk 0:00:19.4]} 51... Bg4 {[%clk
0:00:30.2]} 52. Qf2 {[%clk 0:00:18.3]} 52... Be6 {[%clk 0:00:29]} 53. Qf4 {[%clk
0:00:18.1]} 53... Bd5 {[%clk 0:00:27]} 54. Qf8 {[%clk 0:00:18.3]} 54... Qg4
{[%clk 0:00:25.4]} 55. Qe7 {[%clk 0:00:16.3]} 55... h5 {[%clk 0:00:25.4]} 56.
Kh2 {[%clk 0:00:15.7]} 56... Bc4 {[%clk 0:00:24.4]} 57. Qf8 {[%clk 0:00:15.1]}
57... Bd5 {[%clk 0:00:23.8]} 58. Qf2 {[%clk 0:00:15.1]} 58... Bc4 {[%clk
0:00:19.8]} 59. Bd6 {[%clk 0:00:15.5]} 59... Bd5 {[%clk 0:00:17.4]} 60. Be7
{[%clk 0:00:15.7]} 60... Be6 {[%clk 0:00:17.4]} 61. Bd8 {[%clk 0:00:15]} 61...
Qf5 {[%clk 0:00:17.3]} 62. Qh4 {[%clk 0:00:14.5]} 62... Qg4 {[%clk 0:00:17.1]}
63. Qf2 {[%clk 0:00:14.4]} 63... Qf5 {[%clk 0:00:17.2]} 64. Qg3 {[%clk
0:00:14.9]} 64... Qg4 {[%clk 0:00:17.5]} 65. Qe5 {[%clk 0:00:15.1]} 65... Bc4
{[%clk 0:00:16.4]} 66. Qg3 {[%clk 0:00:14]} 66... Qxg3+ {[%clk 0:00:15.7]} 67.
Kxg3 {[%clk 0:00:14.5]} 67... Kg6 {[%clk 0:00:16.3]} 68. Kf4 {[%clk 0:00:14.3]}
68... Bd5 {[%clk 0:00:17.2]} 69. g4 {[%clk 0:00:14.5]} 69... hxg4 {[%clk
0:00:15.6]} 70. Kxg4 {[%clk 0:00:15.4]} 70... Kf7 {[%clk 0:00:15]} 71. Kf5
{[%clk 0:00:15.6]} 71... g6+ {[%clk 0:00:15.4]} 72. Kg5 {[%clk 0:00:16]} 72...
Bc4 {[%clk 0:00:15.8]} 73. Bb6 {[%clk 0:00:16.2]} 73... Bd5 {[%clk 0:00:16.7]}
74. Bc5 {[%clk 0:00:17.1]} 74... Bc4 {[%clk 0:00:17]} 75. Bb4 {[%clk 0:00:17.3]}
75... Bd5 {[%clk 0:00:17.6]} 76. Kf4 {[%clk 0:00:18.2]} 76... Ke6 {[%clk
0:00:17.4]} 77. Bc5 {[%clk 0:00:18.5]} 77... Kf7 {[%clk 0:00:17.8]} 78. Bd6
{[%clk 0:00:18.9]} 78... Ke6 {[%clk 0:00:17.9]} 79. Bc7 {[%clk 0:00:19.1]} 79...
Kf7 {[%clk 0:00:18.3]} 80. Kg5 {[%clk 0:00:19.2]} 80... Bc4 {[%clk 0:00:17.9]}
81. Bg3 {[%clk 0:00:19.8]} 81... Bd5 {[%clk 0:00:18.2]} 82. Kf4 {[%clk
0:00:18.1]} 82... Ke6 {[%clk 0:00:17.9]} 83. Be1 {[%clk 0:00:18.6]} 83... Kf6
{[%clk 0:00:17.9]} 84. Bh4+ {[%clk 0:00:19]} 84... Kf7 {[%clk 0:00:18.1]} 85.
Ke5 {[%clk 0:00:19.4]} 85... Kg7 {[%clk 0:00:17.4]} 86. Bd8 {[%clk 0:00:19.6]}
86... Kh6 {[%clk 0:00:17.6]} 87. Kf4 {[%clk 0:00:20.2]} 87... Kh5 {[%clk
0:00:17.9]} 88. Bg5 {[%clk 0:00:20.4]} 88... Bc4 {[%clk 0:00:16.9]} 89. Be7
{[%clk 0:00:20.6]} 89... Bd5 {[%clk 0:00:16.8]} 90. Bf6 {[%clk 0:00:21]} 90...
Kh6 {[%clk 0:00:16.5]} 91. Bg5+ {[%clk 0:00:21.3]} 91... Kg7 {[%clk 0:00:16.8]}
92. Ke5 {[%clk 0:00:21.5]} 92... Kf7 {[%clk 0:00:17.1]} 93. Kd6 {[%clk 0:00:22]}
93... Ke8 {[%clk 0:00:17]} 94. Bh4 {[%clk 0:00:22.5]} 94... Kf7 {[%clk
0:00:17.4]} 95. Kd7 {[%clk 0:00:22.8]} 95... Kg7 {[%clk 0:00:16.6]} 96. Bg5
{[%clk 0:00:23.3]} 96... Kf7 {[%clk 0:00:16.7]} 97. Kc7 {[%clk 0:00:23.3]} 97...
Ke6 {[%clk 0:00:16.7]} 98. Bd8 {[%clk 0:00:20.7]} 98... Kf5 {[%clk 0:00:17]} 99.
Kd6 {[%clk 0:00:21.3]} 99... g5 {[%clk 0:00:16.9]} 100. Be7 {[%clk 0:00:21.3]}
100... Kg4 {[%clk 0:00:09.3]} 101. Ke5 {[%clk 0:00:21.5]} 101... Kh5 {[%clk
0:00:08.7]} 102. Kf5 {[%clk 0:00:22]} 102... g4 {[%clk 0:00:09.2]} 103. Kf4
{[%clk 0:00:22.7]} 103... Kg6 {[%clk 0:00:07.9]} 104. Kxg4 {[%clk 0:00:22.3]}
104... Kf7 {[%clk 0:00:08.8]} 105. Bc5 {[%clk 0:00:22.2]} 105... Ke6 {[%clk
0:00:09.7]} 106. Kf4 {[%clk 0:00:22.7]} 106... Kd7 {[%clk 0:00:10.3]} 107. Ke5
{[%clk 0:00:22.5]} 107... Kc8 {[%clk 0:00:11.2]} 108. Kd6 {[%clk 0:00:22.3]}
108... Kb7 {[%clk 0:00:11.9]} 109. Kd7 {[%clk 0:00:22.8]} 109... Ka6 {[%clk
0:00:12.4]} 110. Bd6 {[%clk 0:00:23.5]} 110... Kb5 {[%clk 0:00:12.9]} 111. Bf4
{[%clk 0:00:24.3]} 111... Kc4 {[%clk 0:00:13.5]} 112. Kd6 {[%clk 0:00:24.6]}
112... Kd3 {[%clk 0:00:14.1]} 113. Kc5 {[%clk 0:00:24.6]} 113... Ke2 {[%clk
0:00:14.6]} 114. Bh6 {[%clk 0:00:24.9]} 114... Kf3 {[%clk 0:00:15.5]} 115. Kb4
{[%clk 0:00:25.2]} 115... Ke2 {[%clk 0:00:16.4]} 116. Kc3 {[%clk 0:00:25.6]}
116... Kd1 {[%clk 0:00:16.6]} 117. Kb2 {[%clk 0:00:25.6]} 117... Ke2 {[%clk
0:00:17.5]} 118. Ka3 {[%clk 0:00:25.9]} 118... Bc4 {[%clk 0:00:17.8]} 119. Ka4
{[%clk 0:00:25.8]} 119... Bd5 {[%clk 0:00:18.7]} 120. Ka5 {[%clk 0:00:26.3]}
120... Kd3 {[%clk 0:00:19.3]} 121. Ka6 {[%clk 0:00:20.6]} 121... Kc4 {[%clk
0:00:19.6]} 122. Kb6 {[%clk 0:00:20.7]} 122... Kd3 {[%clk 0:00:20]} 123. Bg5
{[%clk 0:00:21.2]} 123... Ke2 {[%clk 0:00:20.5]} 124. Kc7 {[%clk 0:00:21.7]}
124... Kf3 {[%clk 0:00:21.1]} 125. Kd6 {[%clk 0:00:22.3]} 125... Kg4 {[%clk
0:00:21.7]} 126. Bf4 {[%clk 0:00:22.9]} 126... Kf3 {[%clk 0:00:22.1]} 127. Ke5
{[%clk 0:00:23.6]} 127... Ke2 {[%clk 0:00:22.7]} 128. Kf5 {[%clk 0:00:24]}
128... Kd3 {[%clk 0:00:23.6]} 129. Kf6 {[%clk 0:00:24.2]} 129... Ke2 {[%clk
0:00:24.3]} 130. Ke7 {[%clk 0:00:24.3]} 130... Kd3 {[%clk 0:00:24.9]} 131. Kd8
{[%clk 0:00:24.9]} 131... Ke2 {[%clk 0:00:25.5]} 132. Kc7 {[%clk 0:00:25.5]}
132... Kd3 {[%clk 0:00:26.1]} 133. Kb6 {[%clk 0:00:26]} 133... Kc2 {[%clk
0:00:26.7]} 134. Ka5 {[%clk 0:00:26.3]} 134... Kb3 {[%clk 0:00:27.1]} 135. Bh6
{[%clk 0:00:25.9]} 135... Kc4 {[%clk 0:00:27.6]} 136. Bg5 {[%clk 0:00:26.3]}
136... Kb3 {[%clk 0:00:28.1]} 137. Ka6 {[%clk 0:00:26.1]} 137... Kc4 {[%clk
0:00:28.5]} 138. Ka7 {[%clk 0:00:26.6]} 138... Kb4 {[%clk 0:00:29.1]} 139. Kb8
{[%clk 0:00:25.5]} 139... Kb5 {[%clk 0:00:29.6]} 140. Kc8 {[%clk 0:00:25.7]}
140... Kc4 {[%clk 0:00:30.3]} 141. Kd8 {[%clk 0:00:26.2]} 141... Kd3 {[%clk
0:00:30.9]} 142. Ke7 {[%clk 0:00:26.5]} 142... Ke2 {[%clk 0:00:31.5]} 143. Bh6
{[%clk 0:00:25.6]} 143... Kf3 {[%clk 0:00:31.9]} 144. Kd6 {[%clk 0:00:25.3]}
144... Kg4 {[%clk 0:00:32.5]} 145. Bf4 {[%clk 0:00:25]} 145... Kf3 {[%clk
0:00:33.1]} 146. Kc5 {[%clk 0:00:25.1]} 146... Ke2 {[%clk 0:00:33.7]} 147. Kd6
{[%clk 0:00:25]} 147... Kd3 {[%clk 0:00:34.3]} 148. Ke5 {[%clk 0:00:24.8]}
148... Kc4 {[%clk 0:00:34.9]} 149. Bg5 {[%clk 0:00:24]} 149... Kd3 {[%clk
0:00:35.8]} 150. Kf4 {[%clk 0:00:24.4]} 150... Kc4 {[%clk 0:00:36.7]} 151. Kg3
{[%clk 0:00:24.9]} 151... Kd3 {[%clk 0:00:37.5]} 152. Kf2 {[%clk 0:00:25.6]}
152... Kc4 {[%clk 0:00:38.2]} 153. Ke2 {[%clk 0:00:26.5]} 153... Kc3 {[%clk
0:00:38.9]} 154. Be7 {[%clk 0:00:27.1]} 1/2-1/2